[Event "2026 Biel Blitz Open"]
[Site "Biel, CH"]
[Date "2026.07.19"]
[Round "13"]
[White "Clausen, Martin"]
[Black "Alexakis, Dimitris"]
[Result "0-1"]
[Board "9"]
[TimeControl "180+2"]
[WhiteFideId "1314882"]
[BlackFideId "4277023"]
[WhiteElo "1956"]
[BlackElo "2459"]
[BlackTitle "GM"]
[WhiteClock "0:00:12"]
[BlackClock "0:00:06"]
[Variant "Standard"]
[EndDate "2026.07.19"]
[EndTime "16:24:20"]

1. e4 {[%clk 0:03:02]}  c5 {[%clk 0:03:03]} 2. a3 {[%clk 0:03:03]}  d5 {[%clk 0:02:50]} 3. exd5 {[%clk 0:03:03]}  Nf6 {[%clk 0:02:50]}
4. Nc3 {[%clk 0:03:04]}  Nxd5 {[%clk 0:02:43]} 5. Bc4 {[%clk 0:03:05]}  Nb6 {[%clk 0:02:35]} 6. Ba2 {[%clk 0:02:53]}  Nc6 {[%clk 0:02:33]}
7. Nf3 {[%clk 0:02:50]}  Bf5 {[%clk 0:02:31]} 8. d3 {[%clk 0:02:43]}  e6 {[%clk 0:02:31]} 9. O-O {[%clk 0:02:38]}  Bg4 {[%clk 0:02:30]}
10. Ne4 {[%clk 0:02:29]}  Nd4 {[%clk 0:02:26]} 11. Ned2 {[%clk 0:02:30]}  Bd6 {[%clk 0:02:25]} 12. c3 {[%clk 0:02:27]}  Nxf3+ {[%clk 0:02:21]}
13. Nxf3 {[%clk 0:02:27]}  Qc7 {[%clk 0:02:14]} 14. h3 {[%clk 0:02:24]}  h5 {[%clk 0:02:14]} 15. Qe2 {[%clk 0:02:14]}  O-O-O {[%clk 0:02:11]}
16. b4 {[%clk 0:02:01]}  g5 {[%clk 0:01:45]} 17. bxc5 {[%clk 0:01:52]}  Bxc5 {[%clk 0:01:45]} 18. d4 {[%clk 0:01:19]}  Bxf3 {[%clk 0:01:25]}
19. Qxf3 {[%clk 0:01:15]}  g4 {[%clk 0:01:25]} 20. Qe4 {[%clk 0:00:52]}  Bd6 {[%clk 0:01:21]} 21. Bg5 {[%clk 0:00:43]}  Rdg8 {[%clk 0:01:15]}
22. h4 {[%clk 0:00:42]}  Be7 {[%clk 0:01:13]} 23. Bxe7 {[%clk 0:00:40]}  Qxe7 {[%clk 0:01:13]} 24. g3 {[%clk 0:00:36]}  Rd8 {[%clk 0:01:04]}
25. Rab1 {[%clk 0:00:25]}  Qd7 {[%clk 0:00:50]} 26. Rfd1 {[%clk 0:00:24]}  Qc6 {[%clk 0:00:48]} 27. Qe5 {[%clk 0:00:21]}  Qc7 {[%clk 0:00:44]}
28. Qe4 {[%clk 0:00:22]}  Nd5 {[%clk 0:00:42]} 29. Bxd5 {[%clk 0:00:21]}  exd5 {[%clk 0:00:21]} 30. Qf5+ {[%clk 0:00:22]}  Qd7 {[%clk 0:00:21]}
31. Qf4 {[%clk 0:00:22]}  Rhe8 {[%clk 0:00:20]} 32. Re1 {[%clk 0:00:23]}  Re6 {[%clk 0:00:16]} 33. Re5 {[%clk 0:00:22]}  f6 {[%clk 0:00:12]}
34. Re3 {[%clk 0:00:20]}  Rxe3 {[%clk 0:00:12]} 35. Qxe3 {[%clk 0:00:21]}  Re8 {[%clk 0:00:13]} 36. Qf4 {[%clk 0:00:22]}  Qe6 {[%clk 0:00:10]}
37. a4 {[%clk 0:00:14]}  b6 {[%clk 0:00:06]} 38. a5 {[%clk 0:00:16]}  Kb7 {[%clk 0:00:07]} 39. axb6 {[%clk 0:00:17]}  axb6 {[%clk 0:00:08]}
40. Ra1 {[%clk 0:00:16]}  Ra8 {[%clk 0:00:05]} 41. Rxa8 {[%clk 0:00:15]}  Kxa8 {[%clk 0:00:06]} 42. Qh6 {[%clk 0:00:16]}  Qe1+ {[%clk 0:00:05]}
43. Kg2 {[%clk 0:00:17]}  Qe4+ {[%clk 0:00:05]} 44. Kg1 {[%clk 0:00:19]}  Qf5 {[%clk 0:00:05]} 45. Qf8+ {[%clk 0:00:18]}  Kb7 {[%clk 0:00:06]}
46. Qe7+ {[%clk 0:00:19]}  Ka6 {[%clk 0:00:05]} 47. Qa3+ {[%clk 0:00:20]}  Kb5 {[%clk 0:00:06]} 48. Qb4+ {[%clk 0:00:21]}  Kc6 {[%clk 0:00:07]}
49. Qa4+ {[%clk 0:00:22]}  Kb7 {[%clk 0:00:08]} 50. Qe8 {[%clk 0:00:19]}  Qb1+ {[%clk 0:00:08]} 51. Kh2 {[%clk 0:00:19]}  Qf5 {[%clk 0:00:07]}
52. Kg1 {[%clk 0:00:20]}  Kc7 {[%clk 0:00:05]} 53. Qe7+ {[%clk 0:00:20]}  Kc6 {[%clk 0:00:05]} 54. Qe8+ {[%clk 0:00:20]}  Kb7 {[%clk 0:00:04]}
55. Qe7+ {[%clk 0:00:20]}  Ka6 {[%clk 0:00:05]} 56. Qa3+ {[%clk 0:00:21]}  Kb5 {[%clk 0:00:06]} 57. Qb4+ {[%clk 0:00:22]}  Kc6 {[%clk 0:00:07]}
58. Qa4+ {[%clk 0:00:24]}  Kb7 {[%clk 0:00:07]} 59. Qe8 {[%clk 0:00:23]}  Qb1+ {[%clk 0:00:04]} 60. Kh2 {[%clk 0:00:24]}  Qf5 {[%clk 0:00:05]}
61. Qe7+ {[%clk 0:00:23]}  Kc6 {[%clk 0:00:06]} 62. Qe8+ {[%clk 0:00:23]}  Kb7 {[%clk 0:00:06]} 63. Qe7+ {[%clk 0:00:24]}  Ka6 {[%clk 0:00:07]}
64. Qa3+ {[%clk 0:00:24]}  Kb5 {[%clk 0:00:08]} 65. Qb3+ {[%clk 0:00:25]}  Kc6 {[%clk 0:00:08]} 66. Qa4+ {[%clk 0:00:26]}  Kb7 {[%clk 0:00:08]}
67. Kg1 {[%clk 0:00:25]}  Qe6 {[%clk 0:00:07]} 68. Qb4 {[%clk 0:00:23]}  Qe1+ {[%clk 0:00:05]} 69. Kg2 {[%clk 0:00:24]}  Qe4+ {[%clk 0:00:06]}
70. Kg1 {[%clk 0:00:25]}  f5 {[%clk 0:00:05]} 71. Qa3 {[%clk 0:00:22]}  f4 {[%clk 0:00:06]} 72. gxf4 {[%clk 0:00:22]}  Qe1+ {[%clk 0:00:05]}
73. Kg2 {[%clk 0:00:22]}  Qe4+ {[%clk 0:00:06]} 74. Kg1 {[%clk 0:00:23]}  Qxf4 {[%clk 0:00:05]} 75. Qe7+ {[%clk 0:00:24]}  Ka6 {[%clk 0:00:06]}
76. Qa3+ {[%clk 0:00:24]}  Kb5 {[%clk 0:00:07]} 77. Qb4+ {[%clk 0:00:25]}  Kc6 {[%clk 0:00:08]} 78. Qa4+ {[%clk 0:00:26]}  Kd6 {[%clk 0:00:08]}
79. Qb4+ {[%clk 0:00:26]}  Kc6 {[%clk 0:00:07]} 80. Qa4+ {[%clk 0:00:28]}  Kd6 {[%clk 0:00:05]} 81. Qb4+ {[%clk 0:00:29]}  Kc7 {[%clk 0:00:06]}
82. Qe7+ {[%clk 0:00:28]}  Kc6 {[%clk 0:00:07]} 83. Qe8+ {[%clk 0:00:28]}  Kc7 {[%clk 0:00:04]} 84. Qe7+ {[%clk 0:00:25]}  Kc6 {[%clk 0:00:04]}
85. Qe6+ {[%clk 0:00:30]}  Qd6 {[%clk 0:00:04]} 86. Qc8+ {[%clk 0:00:31]}  Kb5 {[%clk 0:00:05]} 87. Qe8+ {[%clk 0:00:32]}  Kc4 {[%clk 0:00:05]}
88. Qc8+ {[%clk 0:00:31]}  Kd3 {[%clk 0:00:06]} 89. Kg2 {[%clk 0:00:26]}  Qf6 {[%clk 0:00:04]} 90. Qc7 {[%clk 0:00:19]}  b5 {[%clk 0:00:04]}
91. Qc5 {[%clk 0:00:16]}  Qf3+ {[%clk 0:00:05]} 92. Kg1 {[%clk 0:00:17]}  Kd2 {[%clk 0:00:06]} 93. Qxb5 {[%clk 0:00:16]}  Kxc3 {[%clk 0:00:05]}
94. Qc5+ {[%clk 0:00:16]}  Kd3 {[%clk 0:00:06]} 95. Qa3+ {[%clk 0:00:17]}  Kxd4 {[%clk 0:00:06]} 96. Qb4+ {[%clk 0:00:17]}  Kd3 {[%clk 0:00:06]}
97. Qb3+ {[%clk 0:00:17]}  Ke4 {[%clk 0:00:07]} 98. Qb4+ {[%clk 0:00:17]}  d4 {[%clk 0:00:06]} 99. Qe7+ {[%clk 0:00:17]}  Kd3 {[%clk 0:00:07]}
100. Qa3+ {[%clk 0:00:18]}  Kd2 {[%clk 0:00:06]} 101. Qb2+ {[%clk 0:00:18]}  Kd3 {[%clk 0:00:06]} 102. Qb3+ {[%clk 0:00:18]}  Ke4 {[%clk 0:00:05]}
103. Qe6+ {[%clk 0:00:19]}  Kf4 {[%clk 0:00:05]} 104. Qf6+ {[%clk 0:00:19]}  Ke4 {[%clk 0:00:06]} 105. Qe6+ {[%clk 0:00:20]}  Kd3 {[%clk 0:00:07]}
106. Qb3+ {[%clk 0:00:21]}  Ke2 {[%clk 0:00:06]} 107. Qc2+ {[%clk 0:00:21]}  Ke1 {[%clk 0:00:05]} 108. Qb1+ {[%clk 0:00:13]}  Qd1 {[%clk 0:00:06]}
109. Qb4+ {[%clk 0:00:13]}  Ke2+ {[%clk 0:00:06]} 110. Kh2 {[%clk 0:00:12]}  Kxf2 {[%clk 0:00:05]} 111. Qf8+ {[%clk 0:00:12]}  Ke1 {[%clk 0:00:05]}
112. Qf4 {[%clk 0:00:11]}  Qd2+ {[%clk 0:00:06]} 113. Kh1 {[%clk 0:00:12]}  Qxf4 {[%clk 0:00:06]} 0-1

[Event "2026 Biel Blitz Open"]
[Site "Biel, CH"]
[Date "2026.07.19"]
[Round "13"]
[White "Thorfinnsson, Bjorn"]
[Black "Gautier, Anand"]
[Result "1/2-1/2"]
[Board "10"]
[TimeControl "180+2"]
[WhiteFideId "2300982"]
[BlackFideId "26010186"]
[WhiteElo "2396"]
[BlackElo "2198"]
[WhiteTitle "IM"]
[BlackTitle "FM"]
[WhiteClock "0:00:18"]
[BlackClock "0:00:08"]
[Variant "Standard"]
[EndDate "2026.07.19"]
[EndTime "16:27:42"]

1. d4 {[%clk 0:03:03]}  Nf6 {[%clk 0:03:04]} 2. Nf3 {[%clk 0:03:04]}  g6 {[%clk 0:03:05]} 3. Bg5 {[%clk 0:03:05]}  Bg7 {[%clk 0:03:06]}
4. e3 {[%clk 0:03:07]}  O-O {[%clk 0:03:06]} 5. Bd3 {[%clk 0:03:08]}  c5 {[%clk 0:03:02]} 6. c3 {[%clk 0:03:09]}  d6 {[%clk 0:03:00]}
7. Nbd2 {[%clk 0:03:10]}  Nc6 {[%clk 0:02:54]} 8. Qc2 {[%clk 0:03:10]}  Bd7 {[%clk 0:02:41]} 9. h4 {[%clk 0:03:08]}  Rc8 {[%clk 0:02:39]}
10. a3 {[%clk 0:03:01]}  cxd4 {[%clk 0:02:34]} 11. exd4 {[%clk 0:03:02]}  Bg4 {[%clk 0:02:28]} 12. Bxf6 {[%clk 0:02:37]}  Bxf6 {[%clk 0:02:26]}
13. h5 {[%clk 0:02:38]}  Bxh5 {[%clk 0:02:08]} 14. Rxh5 {[%clk 0:02:39]}  gxh5 {[%clk 0:02:09]} 15. Bxh7+ {[%clk 0:02:39]}  Kg7 {[%clk 0:02:11]}
16. d5 {[%clk 0:02:26]}  Ne5 {[%clk 0:02:06]} 17. Bf5 {[%clk 0:02:25]}  Rc5 {[%clk 0:01:58]} 18. Be4 {[%clk 0:02:05]}  Rh8 {[%clk 0:01:55]}
19. Nb3 {[%clk 0:01:57]}  Rc8 {[%clk 0:01:55]} 20. O-O-O {[%clk 0:01:53]}  Nxf3 {[%clk 0:01:51]} 21. Bxf3 {[%clk 0:01:51]}  Qg8 {[%clk 0:01:44]}
22. Qf5 {[%clk 0:01:45]}  Rc7 {[%clk 0:01:39]} 23. Be4 {[%clk 0:01:40]}  Kf8 {[%clk 0:01:37]} 24. Kb1 {[%clk 0:01:37]}  Qg4 {[%clk 0:01:36]}
25. Rh1 {[%clk 0:01:31]}  Qxf5 {[%clk 0:01:36]} 26. Bxf5 {[%clk 0:01:32]}  h4 {[%clk 0:01:33]} 27. Kc2 {[%clk 0:01:30]}  Rg8 {[%clk 0:01:34]}
28. Be4 {[%clk 0:01:25]}  e6 {[%clk 0:01:28]} 29. dxe6 {[%clk 0:01:21]}  fxe6 {[%clk 0:01:30]} 30. Bf3 {[%clk 0:01:22]}  d5 {[%clk 0:01:26]}
31. Re1 {[%clk 0:01:22]}  Re7 {[%clk 0:01:15]} 32. Nc5 {[%clk 0:01:23]}  Kf7 {[%clk 0:00:32]} 33. Bh5+ {[%clk 0:01:23]}  Kg7 {[%clk 0:00:34]}
34. Nxe6+ {[%clk 0:01:24]}  Kh6 {[%clk 0:00:36]} 35. Bf3 {[%clk 0:01:25]}  d4 {[%clk 0:00:35]} 36. cxd4 {[%clk 0:01:13]}  Bxd4 {[%clk 0:00:33]}
37. Rd1 {[%clk 0:00:50]}  Bxf2 {[%clk 0:00:27]} 38. Nf4 {[%clk 0:00:50]}  Bc5 {[%clk 0:00:14]} 39. Rd5 {[%clk 0:00:47]}  Be3 {[%clk 0:00:14]}
40. Rh5+ {[%clk 0:00:46]}  Kg7 {[%clk 0:00:16]} 41. Nd5 {[%clk 0:00:44]}  Ree8 {[%clk 0:00:08]} 42. Rxh4 {[%clk 0:00:45]}  Bb6 {[%clk 0:00:05]}
43. Rg4+ {[%clk 0:00:45]}  Kh6 {[%clk 0:00:06]} 44. Rh4+ {[%clk 0:00:40]}  Kg5 {[%clk 0:00:06]} 45. Rh5+ {[%clk 0:00:39]}  Kg6 {[%clk 0:00:08]}
46. Rh1 {[%clk 0:00:38]}  Rh8 {[%clk 0:00:08]} 47. Rd1 {[%clk 0:00:37]}  Rd8 {[%clk 0:00:09]} 48. Re1 {[%clk 0:00:36]}  Rc8+ {[%clk 0:00:08]}
49. Kb3 {[%clk 0:00:37]}  Bc5 {[%clk 0:00:07]} 50. Ka2 {[%clk 0:00:32]}  b6 {[%clk 0:00:08]} 51. b4 {[%clk 0:00:29]}  Bf8 {[%clk 0:00:10]}
52. Kb3 {[%clk 0:00:24]}  Rd8 {[%clk 0:00:08]} 53. Rc1 {[%clk 0:00:24]}  Rh4 {[%clk 0:00:05]} 54. Rc6+ {[%clk 0:00:25]}  Kg5 {[%clk 0:00:06]}
55. Rc7 {[%clk 0:00:25]}  Rd4 {[%clk 0:00:05]} 56. Nc3 {[%clk 0:00:21]}  Rd3 {[%clk 0:00:05]} 57. Kc2 {[%clk 0:00:21]}  Rd2+ {[%clk 0:00:05]}
58. Kb3 {[%clk 0:00:22]}  R2d3 {[%clk 0:00:06]} 59. Kc2 {[%clk 0:00:20]}  Rd2+ {[%clk 0:00:04]} 60. Kb3 {[%clk 0:00:18]}  R2d3 {[%clk 0:00:08]}
61. Ka4 {[%clk 0:00:18]}  a5 {[%clk 0:00:05]} 62. Ne4+ {[%clk 0:00:18]}  Kf4 {[%clk 0:00:05]} 63. Rf7 {[%clk 0:00:17]}  Ke3 {[%clk 0:00:06]}
64. Ng5 {[%clk 0:00:06]}  axb4 {[%clk 0:00:05]} 65. axb4 {[%clk 0:00:07]}  Bd6 {[%clk 0:00:03]} 66. Ne6 {[%clk 0:00:05]}  Re8 {[%clk 0:00:04]}
67. Nc7 {[%clk 0:00:04]}  Rh8 {[%clk 0:00:04]} 68. Nb5 {[%clk 0:00:03]}  Bf8 {[%clk 0:00:04]} 69. Rf6 {[%clk 0:00:04]}  Bg7 {[%clk 0:00:03]}
70. Re6+ {[%clk 0:00:05]}  Kd2 {[%clk 0:00:04]} 71. Rxb6 {[%clk 0:00:07]}  Bb2 {[%clk 0:00:05]} 72. Nc7 {[%clk 0:00:07]}  Bd4 {[%clk 0:00:04]}
73. Rd6 {[%clk 0:00:07]}  Be5 {[%clk 0:00:04]} 74. Rxd3+ {[%clk 0:00:08]}  Kxd3 {[%clk 0:00:05]} 75. Ne6 {[%clk 0:00:10]}  Re8 {[%clk 0:00:05]}
76. Nc5+ {[%clk 0:00:11]}  Kc4 {[%clk 0:00:04]} 77. Be2 {[%clk 0:00:12]}  Kd5 {[%clk 0:00:03]} 78. Bf3+ {[%clk 0:00:13]}  Kd6 {[%clk 0:00:03]}
79. Kb5 {[%clk 0:00:14]}  Rb8+ {[%clk 0:00:04]} 80. Kc4 {[%clk 0:00:15]}  Bh2 {[%clk 0:00:03]} 81. b5 {[%clk 0:00:16]}  Rc8 {[%clk 0:00:04]}
82. Bc6 {[%clk 0:00:14]}  Rxc6 {[%clk 0:00:04]} 83. bxc6 {[%clk 0:00:19]}  Kxc6 {[%clk 0:00:05]} 84. Nd3 {[%clk 0:00:19]}  Kd6 {[%clk 0:00:06]}
85. Kd4 {[%clk 0:00:21]}  Ke6 {[%clk 0:00:07]} 86. Ke4 {[%clk 0:00:22]}  Kf6 {[%clk 0:00:08]} 87. Nf4 {[%clk 0:00:23]}  Kg5 {[%clk 0:00:08]}
88. Ne2 {[%clk 0:00:24]}  Kg4 {[%clk 0:00:09]} 89. Ke3 {[%clk 0:00:25]}  Bb8 {[%clk 0:00:09]} 90. Kf2 {[%clk 0:00:27]}  Ba7+ {[%clk 0:00:11]}
91. Kf1 {[%clk 0:00:28]}  Bb8 {[%clk 0:00:13]} 92. Nc3 {[%clk 0:00:29]}  Ba7 {[%clk 0:00:13]} 93. Ne4 {[%clk 0:00:31]}  Bb8 {[%clk 0:00:15]}
94. Nf6+ {[%clk 0:00:32]}  Kf5 {[%clk 0:00:15]} 95. Nd7 {[%clk 0:00:33]}  Ba7 {[%clk 0:00:17]} 96. Ke2 {[%clk 0:00:34]}  Kg4 {[%clk 0:00:17]}
97. Nf6+ {[%clk 0:00:35]}  Kg3 {[%clk 0:00:18]} 98. Kf1 {[%clk 0:00:33]}  Kf4 {[%clk 0:00:18]} 99. Nd5+ {[%clk 0:00:37]}  Kg3 {[%clk 0:00:19]}
100. Nb4 {[%clk 0:00:38]}  Kg4 {[%clk 0:00:19]} 101. Nc6 {[%clk 0:00:38]}  Bb6 {[%clk 0:00:20]} 102. Ne5+ {[%clk 0:00:35]}  Kg3 {[%clk 0:00:20]}
103. Nc4 {[%clk 0:00:35]}  Bc7 {[%clk 0:00:22]} 104. Nd2 {[%clk 0:00:36]}  Kg4 {[%clk 0:00:22]} 105. Ne4 {[%clk 0:00:37]}  Bb8 {[%clk 0:00:21]}
106. Kf2 {[%clk 0:00:36]}  Ba7+ {[%clk 0:00:23]} 107. Kf1 {[%clk 0:00:37]}  Bb8 {[%clk 0:00:23]} 108. Kf2 {[%clk 0:00:38]}  Ba7+ {[%clk 0:00:24]}
109. Kf1 {[%clk 0:00:39]}  Bb8 {[%clk 0:00:26]} 1/2-1/2

[Event "2026 Biel Blitz Open"]
[Site "Biel, CH"]
[Date "2026.07.19"]
[Round "13"]
[White "Omar, Noaman"]
[Black "Tureshbayev, Anuar"]
[Result "0-1"]
[Board "11"]
[TimeControl "180+2"]
[WhiteFideId "9300244"]
[BlackFideId "651081709"]
[WhiteElo "2274"]
[BlackElo "2328"]
[WhiteTitle "IM"]
[BlackTitle "FM"]
[WhiteClock "0:00:52"]
[BlackClock "0:02:06"]
[Variant "Standard"]
[EndDate "2026.07.19"]
[EndTime "16:15:47"]

1. d4 {[%clk 0:03:03]}  Nf6 {[%clk 0:03:03]} 2. c4 {[%clk 0:03:04]}  e6 {[%clk 0:03:05]} 3. Nf3 {[%clk 0:03:03]}  d5 {[%clk 0:03:06]}
4. Nc3 {[%clk 0:03:03]}  dxc4 {[%clk 0:03:05]} 5. e4 {[%clk 0:03:01]}  b5 {[%clk 0:03:07]} 6. e5 {[%clk 0:03:01]}  Nd5 {[%clk 0:03:08]}
7. Nxb5 {[%clk 0:03:01]}  Nb6 {[%clk 0:03:09]} 8. Be2 {[%clk 0:02:59]}  Nc6 {[%clk 0:03:11]} 9. O-O {[%clk 0:02:58]}  Be7 {[%clk 0:03:12]}
10. Qd2 {[%clk 0:02:47]}  Qd7 {[%clk 0:03:04]} 11. Rd1 {[%clk 0:02:29]}  Bb7 {[%clk 0:02:59]} 12. Qf4 {[%clk 0:02:22]}  O-O-O {[%clk 0:02:40]}
13. a4 {[%clk 0:02:02]}  g5 {[%clk 0:02:38]} 14. Nxg5 {[%clk 0:01:43]}  Bxg5 {[%clk 0:02:29]} 15. Qxg5 {[%clk 0:01:42]}  Rhg8 {[%clk 0:02:30]}
16. Qf4 {[%clk 0:01:22]}  a6 {[%clk 0:02:29]} 17. Bf3 {[%clk 0:01:18]}  axb5 {[%clk 0:02:09]} 18. axb5 {[%clk 0:01:18]}  Nxd4 {[%clk 0:02:07]}
19. Bxb7+ {[%clk 0:01:09]}  Kxb7 {[%clk 0:02:08]} 20. Qe4+ {[%clk 0:01:05]}  Qd5 {[%clk 0:02:09]} 21. Qxd5+ {[%clk 0:01:01]}  Rxd5 {[%clk 0:02:09]}
22. Kf1 {[%clk 0:00:56]}  Nb3 {[%clk 0:02:08]} 23. Rxd5 {[%clk 0:00:54]}  exd5 {[%clk 0:02:05]} 24. Rb1 {[%clk 0:00:54]}  d4 {[%clk 0:02:07]}
25. Bf4 {[%clk 0:00:52]}  d3 {[%clk 0:02:06]} 0-1

[Event "2026 Biel Blitz Open"]
[Site "Biel, CH"]
[Date "2026.07.19"]
[Round "13"]
[White "Mohammad Nubairshah Shaikh"]
[Black "Fernandes Barbosa Dos Santos, Gabriel"]
[Result "1-0"]
[Board "12"]
[TimeControl "180+2"]
[WhiteFideId "5053196"]
[BlackFideId "1354388"]
[WhiteElo "2316"]
[BlackElo "2167"]
[WhiteTitle "IM"]
[BlackTitle "CM"]
[WhiteClock "0:00:12"]
[BlackClock "0:00:07"]
[Variant "Standard"]
[EndDate "2026.07.19"]
[EndTime "16:21:51"]

1. Nf3 {[%clk 0:03:04]}  d5 {[%clk 0:03:03]} 2. g3 {[%clk 0:03:05]}  Nf6 {[%clk 0:03:03]} 3. Bg2 {[%clk 0:03:06]}  e6 {[%clk 0:03:04]}
4. O-O {[%clk 0:03:05]}  Be7 {[%clk 0:03:05]} 5. c4 {[%clk 0:03:06]}  O-O {[%clk 0:03:02]} 6. d4 {[%clk 0:03:08]}  dxc4 {[%clk 0:03:02]}
7. Qc2 {[%clk 0:03:08]}  a6 {[%clk 0:03:00]} 8. a4 {[%clk 0:03:09]}  Bd7 {[%clk 0:03:00]} 9. Qxc4 {[%clk 0:03:09]}  Bc6 {[%clk 0:02:59]}
10. Bg5 {[%clk 0:03:10]}  Bd5 {[%clk 0:02:57]} 11. Qc2 {[%clk 0:03:12]}  Be4 {[%clk 0:02:57]} 12. Qc1 {[%clk 0:03:13]}  h6 {[%clk 0:02:50]}
13. Bxf6 {[%clk 0:03:07]}  Bxf6 {[%clk 0:02:51]} 14. Nbd2 {[%clk 0:03:06]}  Bxf3 {[%clk 0:02:49]} 15. Bxf3 {[%clk 0:03:06]}  c6 {[%clk 0:02:47]}
16. e3 {[%clk 0:03:07]}  a5 {[%clk 0:02:48]} 17. Rd1 {[%clk 0:03:07]}  Na6 {[%clk 0:02:48]} 18. Nc4 {[%clk 0:02:44]}  Nb4 {[%clk 0:02:40]}
19. Qc3 {[%clk 0:02:26]}  Rc8 {[%clk 0:02:33]} 20. Qb3 {[%clk 0:02:06]}  Qc7 {[%clk 0:02:08]} 21. Rac1 {[%clk 0:02:05]}  Rfd8 {[%clk 0:02:08]}
22. Kg2 {[%clk 0:02:05]}  Be7 {[%clk 0:02:02]} 23. h4 {[%clk 0:02:06]}  Bf6 {[%clk 0:01:34]} 24. h5 {[%clk 0:01:59]}  e5 {[%clk 0:01:30]}
25. dxe5 {[%clk 0:01:03]}  Bxe5 {[%clk 0:01:30]} 26. Be4 {[%clk 0:01:01]}  Bf6 {[%clk 0:01:20]} 27. Bf5 {[%clk 0:00:58]}  Rxd1 {[%clk 0:01:17]}
28. Qxd1 {[%clk 0:00:59]}  Rd8 {[%clk 0:01:16]} 29. Qg4 {[%clk 0:00:52]}  b5 {[%clk 0:00:58]} 30. Na3 {[%clk 0:00:30]}  Bxb2 {[%clk 0:00:38]}
31. Nxb5 {[%clk 0:00:31]}  Qe5 {[%clk 0:00:39]} 32. Rb1 {[%clk 0:00:08]}  cxb5 {[%clk 0:00:39]} 33. axb5 {[%clk 0:00:09]}  Bc3 {[%clk 0:00:32]}
34. b6 {[%clk 0:00:06]}  Rb8 {[%clk 0:00:33]} 35. Be4 {[%clk 0:00:04]}  Qe6 {[%clk 0:00:20]} 36. Qxe6 {[%clk 0:00:03]}  fxe6 {[%clk 0:00:21]}
37. Rc1 {[%clk 0:00:04]}  Be5 {[%clk 0:00:22]} 38. b7 {[%clk 0:00:05]}  Kf7 {[%clk 0:00:22]} 39. Rc5 {[%clk 0:00:06]}  Nd5 {[%clk 0:00:14]}
40. Rxa5 {[%clk 0:00:06]}  Rxb7 {[%clk 0:00:15]} 41. Rxd5 {[%clk 0:00:05]}  exd5 {[%clk 0:00:14]} 42. Bxd5+ {[%clk 0:00:06]}  Kf6 {[%clk 0:00:14]}
43. Bxb7 {[%clk 0:00:07]}  Bc7 {[%clk 0:00:16]} 44. f4 {[%clk 0:00:08]}  Bb6 {[%clk 0:00:17]} 45. Kf3 {[%clk 0:00:09]}  Ba5 {[%clk 0:00:18]}
46. e4 {[%clk 0:00:10]}  Be1 {[%clk 0:00:18]} 47. Bd5 {[%clk 0:00:11]}  Bc3 {[%clk 0:00:18]} 48. e5+ {[%clk 0:00:12]}  Ke7 {[%clk 0:00:17]}
49. Ke4 {[%clk 0:00:13]}  Be1 {[%clk 0:00:15]} 50. g4 {[%clk 0:00:14]}  Bd2 {[%clk 0:00:16]} 51. Kf5 {[%clk 0:00:14]}  Be3 {[%clk 0:00:14]}
52. Bc4 {[%clk 0:00:15]}  Bd2 {[%clk 0:00:15]} 53. Bb3 {[%clk 0:00:10]}  Bc1 {[%clk 0:00:16]} 54. Ke4 {[%clk 0:00:11]}  Bd2 {[%clk 0:00:17]}
55. Bc4 {[%clk 0:00:09]}  Bc1 {[%clk 0:00:18]} 56. Kf3 {[%clk 0:00:10]}  Bd2 {[%clk 0:00:19]} 57. Ke4 {[%clk 0:00:11]}  Bc1 {[%clk 0:00:20]}
58. Kf5 {[%clk 0:00:12]}  Bd2 {[%clk 0:00:21]} 59. Bb3 {[%clk 0:00:09]}  Bc1 {[%clk 0:00:22]} 60. g5 {[%clk 0:00:08]}  Bd2 {[%clk 0:00:14]}
61. Kg4 {[%clk 0:00:06]}  Bc1 {[%clk 0:00:13]} 62. Bc4 {[%clk 0:00:07]}  Bd2 {[%clk 0:00:15]} 63. Kf5 {[%clk 0:00:06]}  Bc1 {[%clk 0:00:16]}
64. gxh6 {[%clk 0:00:06]}  gxh6 {[%clk 0:00:16]} 65. Ke4 {[%clk 0:00:07]}  Bd2 {[%clk 0:00:15]} 66. Bb3 {[%clk 0:00:08]}  Bc1 {[%clk 0:00:15]}
67. f5 {[%clk 0:00:06]}  Bg5 {[%clk 0:00:13]} 68. Bc4 {[%clk 0:00:07]}  Bh4 {[%clk 0:00:14]} 69. Kf4 {[%clk 0:00:09]}  Bg5+ {[%clk 0:00:13]}
70. Kg4 {[%clk 0:00:10]}  Bd2 {[%clk 0:00:05]} 71. f6+ {[%clk 0:00:09]}  Kf8 {[%clk 0:00:06]} 72. Kf5 {[%clk 0:00:13]}  Bc3 {[%clk 0:00:05]}
73. e6 {[%clk 0:00:11]}  Bd4 {[%clk 0:00:06]} 74. e7+ {[%clk 0:00:11]}  Ke8 {[%clk 0:00:07]} 75. Bb5+ {[%clk 0:00:12]} 1-0

[Event "2026 Biel Blitz Open"]
[Site "Biel, CH"]
[Date "2026.07.19"]
[Round "13"]
[White "Erne, Raphael"]
[Black "Fogo Esquivel, Levi Kalani Alexander"]
[Result "0-1"]
[Board "13"]
[TimeControl "180+2"]
[WhiteFideId "1341928"]
[BlackFideId "5183189"]
[WhiteElo "2128"]
[BlackElo "2219"]
[BlackTitle "FM"]
[WhiteClock "0:00:04"]
[BlackClock "0:00:35"]
[Variant "Standard"]
[EndDate "2026.07.19"]
[EndTime "16:18:29"]

1. c4 {[%clk 0:03:02]}  Nf6 {[%clk 0:03:03]} 2. g3 {[%clk 0:03:03]}  e6 {[%clk 0:03:03]} 3. Bg2 {[%clk 0:03:04]}  d5 {[%clk 0:03:05]}
4. Nf3 {[%clk 0:03:05]}  Be7 {[%clk 0:03:06]} 5. d4 {[%clk 0:03:06]}  O-O {[%clk 0:03:06]} 6. Qc2 {[%clk 0:03:07]}  dxc4 {[%clk 0:03:05]}
7. O-O {[%clk 0:03:07]}  b5 {[%clk 0:03:00]} 8. a4 {[%clk 0:02:59]}  b4 {[%clk 0:03:01]} 9. Qxc4 {[%clk 0:02:47]}  Ba6 {[%clk 0:02:56]}
10. Qc2 {[%clk 0:02:48]}  Nd5 {[%clk 0:02:36]} 11. Rd1 {[%clk 0:02:42]}  Nd7 {[%clk 0:02:36]} 12. b3 {[%clk 0:02:29]}  Qc8 {[%clk 0:02:23]}
13. e4 {[%clk 0:02:27]}  N5f6 {[%clk 0:02:23]} 14. Bb2 {[%clk 0:02:24]}  c5 {[%clk 0:02:17]} 15. d5 {[%clk 0:02:23]}  exd5 {[%clk 0:02:03]}
16. exd5 {[%clk 0:02:24]}  c4 {[%clk 0:02:04]} 17. d6 {[%clk 0:02:10]}  Bd8 {[%clk 0:02:05]} 18. bxc4 {[%clk 0:02:11]}  Qxc4 {[%clk 0:01:53]}
19. Qxc4 {[%clk 0:01:20]}  Bxc4 {[%clk 0:01:54]} 20. Nd4 {[%clk 0:01:00]}  Rc8 {[%clk 0:01:52]} 21. Nc6 {[%clk 0:00:59]}  a5 {[%clk 0:01:33]}
22. Rc1 {[%clk 0:00:37]}  Bd5 {[%clk 0:01:26]} 23. Nd2 {[%clk 0:00:21]}  Re8 {[%clk 0:00:56]} 24. Kf1 {[%clk 0:00:06]}  Kf8 {[%clk 0:00:53]}
25. Bxd5 {[%clk 0:00:04]}  Nxd5 {[%clk 0:00:53]} 26. Nd4 {[%clk 0:00:03]}  Bf6 {[%clk 0:00:52]} 27. N2f3 {[%clk 0:00:04]}  N7b6 {[%clk 0:00:40]}
28. Rc7 {[%clk 0:00:06]}  Nxc7 {[%clk 0:00:38]} 29. dxc7 {[%clk 0:00:06]}  Rxc7 {[%clk 0:00:39]} 30. Rb1 {[%clk 0:00:04]}  Nxa4 {[%clk 0:00:40]}
31. Nb5 {[%clk 0:00:05]}  Rd7 {[%clk 0:00:34]} 32. Bxf6 {[%clk 0:00:05]}  gxf6 {[%clk 0:00:36]} 33. Ra1 {[%clk 0:00:07]}  Nc3 {[%clk 0:00:35]}
34. Rxa5 {[%clk 0:00:04]}  Rd5 {[%clk 0:00:35]} 0-1